bitfinex-derivatives/quotes_SOLF0:USTF0_20260308
["timestamp","ask_amount","ask_price","bid_price","bid_amount"]
[1773012061001,17.55174833,82.053,82.0,8.05781431]
[1773012061202,9.74859803,82.052,82.0,8.05781431]
[1773012061397,7.8031503,82.065,82.019,8.05781431]
[1773012061700,7.8031503,82.049,81.981,8.05781431]
[1773012061897,7.8031503,82.047,81.981,8.05781431]
[1773012062097,7.8031503,82.045,81.981,8.05781431]
[1773012062298,7.8031503,82.029,81.961,8.05781431]
[1773012062497,7.8031503,82.027,81.961,8.05781431]
[1773012062698,7.8031503,82.025,81.963,10.979]
[1773012062899,7.75073742,82.023,81.964,7.64375863]
[1773012063096,7.75073742,82.021,81.964,7.64375863]
[1773012063404,7.75073742,82.019,81.964,7.64375863]
[1773012063605,7.75073742,82.017,81.964,7.64375863]
[1773012064400,10.972,82.016,81.964,7.64375863]
[1773012064607,7.75073742,82.014,81.952,7.64375863]
[1773012065606,7.75073742,82.013,81.962,10.98]
[1773012065807,7.75073742,82.013,81.962,18.62375863]
[1773012067106,7.75073742,82.013,81.965,7.80718881]
[1773012069402,8.38288259,82.011,81.965,7.80718881]
[1773012073706,8.38288259,82.026,81.973,7.80718881]
[1773012073901,8.38288259,82.024,81.973,7.80718881]
[1773012074102,8.38288259,82.022,81.973,7.80718881]
[1773012074909,8.38288259,82.022,81.978,18.78418881]
[1773012075603,8.38288259,82.022,81.98,3.80601074]
[1773012075803,8.38288259,82.022,81.979,7.80718881]
[1773012076004,8.38288259,82.009,81.97,10.979]
[1773012076403,9.73864339,82.018,81.971,7.80718881]
[1773012076604,3.80601074,82.03,81.982,7.80718881]
[1773012076799,8.38288259,82.048,81.991,7.80718881]
[1773012077001,12.18889333,82.03,81.992,10.976]
[1773012077211,8.38288259,82.03,81.992,10.976]
[1773012079015,9.73487294,82.038,81.993,7.80718881]
[1773012079308,8.38288259,82.043,81.958,21.961]
[1773012079309,8.38288259,82.043,82.001,7.80718881]
[1773012079511,3.80601074,82.03,81.986,7.80718881]
[1773012079710,8.38288259,82.029,81.986,7.80718881]
[1773012080105,8.38288259,82.029,81.98,3.80601074]
[1773012080809,8.38288259,82.029,81.979,10.977]
[1773012081814,19.35388259,82.028,81.979,10.977]
[1773012082109,8.38288259,82.028,81.984,7.80718881]
[1773012082309,8.38288259,82.039,81.991,7.80718881]
[1773012082514,8.38288259,82.039,82.001,7.80718881]
[1773012086313,8.38288259,82.039,81.99,14.78201074]
[1773012086516,8.38288259,82.038,81.988,7.80718881]
[1773012086816,8.38288259,82.029,81.988,7.80718881]
[1773012088320,8.38288259,82.029,81.98,3.80601074]
[1773012088514,8.38288259,82.009,81.962,7.80718881]
[1773012088716,12.18889333,82.0,81.962,7.80718881]
[1773012090223,8.38288259,82.0,81.962,7.80718881]
[1773012096728,8.23155889,81.999,81.951,10.981]
[1773012096921,3.80601074,81.99,81.951,18.65986679]
[1773012097227,8.23155889,81.999,81.951,18.65986679]
[1773012102021,3.80886104,81.99,81.951,7.67886679]
[1773012102222,8.23155889,81.989,81.942,10.982]
[1773012103431,8.23155889,81.989,81.943,7.67886679]
[1773012103925,8.23155889,81.988,81.943,7.67886679]
[1773012104432,3.80886104,81.98,81.943,7.67886679]
[1773012106430,8.23155889,81.994,81.951,7.67886679]
[1773012106728,3.80886104,81.99,81.951,7.67886679]
[1773012107131,12.04041993,81.99,81.951,7.67886679]
[1773012109243,12.04041993,81.99,81.951,18.65986679]
[1773012109632,8.23155889,81.99,81.951,18.65986679]
[1773012110844,8.23155889,81.989,81.951,7.67886679]
[1773012111445,8.23155889,81.987,81.944,10.982]
[1773012113044,8.23155889,81.987,81.944,18.66086679]
[1773012113544,8.23155889,81.987,81.945,7.67886679]
[1773012114544,8.23155889,81.985,81.945,7.67886679]
[1773012117040,8.23155889,81.985,81.948,7.67886679]
[1773012117246,14.95143228,82.031,81.948,7.67886679]
[1773012117247,8.23155889,81.999,81.948,7.67886679]
[1773012118745,8.23155889,81.999,81.95,7.67886679]
[1773012120345,9.70634385,82.017,81.971,7.67886679]
[1773012120552,8.23155889,82.028,81.981,7.67886679]
[1773012120843,8.23155889,82.009,81.964,7.67886679]
[1773012121440,8.23155889,82.009,81.966,10.979]
[1773012121643,8.23155889,82.009,81.966,18.65786679]
[1773012121843,8.23155889,82.021,81.971,7.67886679]
[1773012122049,8.23155889,82.021,81.978,7.67886679]
[1773012123051,7.62705455,82.034,81.991,7.85654457]
[1773012123946,195.08,82.055,81.96,3.80886104]
[1773012123947,3.80886104,82.02,81.96,3.80886104]
[1773012124151,7.62705455,82.009,81.951,7.85654457]
[1773012124352,7.62705455,81.989,81.951,7.85654457]
[1773012124552,14.95143228,82.037,81.95,294.15454474]
[1773012124553,7.62705455,82.024,81.971,7.85654457]
[1773012124745,7.62705455,82.019,81.971,7.85654457]
[1773012124946,7.62705455,82.039,81.993,7.85654457]
[1773012126041,8.1916605,82.029,81.981,10.977]
[1773012126241,8.1916605,82.029,81.982,7.73438297]
[1773012127052,8.1916605,82.029,81.984,10.977]
[1773012127252,8.1916605,82.029,81.984,18.71138297]
[1773012127549,8.1916605,82.029,81.985,7.73438297]
[1773012128653,8.1916605,82.029,81.95,294.15454474]
[1773012128654,3.80886104,82.04,81.991,7.73438297]
[1773012128856,8.1916605,82.043,82.001,7.73438297]
[1773012129157,3.80886104,82.05,82.001,7.73438297]
[1773012129651,8.1916605,82.049,82.001,7.73438297]
[1773012130254,8.1916605,82.047,82.001,7.73438297]
[1773012131949,3.80886104,82.04,81.99,3.80886104]
[1773012132146,8.1916605,82.019,81.974,7.73438297]
[1773012132654,3.80886104,82.01,81.974,7.73438297]
[1773012133360,11.01,82.028,81.981,7.73438297]
[1773012134057,11.01,82.028,81.984,7.73438297]
[1773012134358,11.01,82.028,81.991,7.73438297]
[1773012135153,11.01,82.028,81.993,7.73438297]
[1773012135553,11.01,82.028,82.0,11.54324401]
[1773012136852,9.70003743,82.054,82.004,7.73438297]
[1773012137051,3.80886104,82.05,82.004,7.73438297]
[1773012137852,3.80886104,82.05,82.006,2.10686269]
[1773012138155,3.80886104,82.05,82.011,2.10686269]
[1773012138355,3.80886104,82.05,82.0,3.80886104]
[1773012138356,8.1916605,82.049,82.0,3.80886104]
[1773012138759,8.1916605,82.049,82.0,5.92048034]
[1773012139262,3.80886104,82.03,81.986,2.11148886]
[1773012139457,8.1916605,82.039,81.986,2.11148886]
[1773012140260,12.00052154,82.01,81.958,2.10217276]
[1773012140463,8.1916605,82.009,81.958,2.10217276]
[1773012141060,8.1916605,82.009,81.97,10.979]
[1773012141256,3.80886104,82.01,81.97,16.89460729]
[1773012141558,3.80886104,82.01,81.974,10.978]
[1773012141754,3.80886104,82.02,81.974,10.978]
[1773012142160,8.1916605,82.022,81.978,2.08945935]
[1773012142765,8.1916605,82.022,81.98,10.977]
[1773012143260,3.80886104,82.02,81.98,10.977]
[1773012144159,8.1916605,82.022,81.986,10.976]
[1773012144461,8.1916605,82.036,81.991,2.05914493]
[1773012145858,8.1916605,82.036,81.993,10.975]
[1773012147366,19.55886104,82.04,81.999,2.06164768]
[1773012147663,15.75,82.04,81.999,2.06164768]
[1773012147869,15.75,82.04,82.001,1.98220931]
[1773012148665,8.1916605,82.069,82.02,3.80886104]
[1773012148864,11.31738905,82.106,82.013,1.98656412]
[1773012148865,8.1916605,82.059,82.013,1.98656412]
[1773012149771,8.1916605,82.059,82.015,10.973]
[1773012151867,8.1916605,82.073,82.021,2.5416723]
[1773012152369,8.1916605,82.067,82.021,2.5416723]
[1773012152565,3.80886104,82.05,82.005,2.5416723]
[1773012152770,8.1916605,82.049,82.0,3.80886104]
[1773012153874,7.58714347,82.048,82.0,3.80886104]
[1773012155375,3.80886104,82.05,81.931,176.0]
[1773012155376,7.58714347,82.062,82.02,3.80886104]
[1773012156173,7.58714347,82.069,82.02,3.80886104]
[1773012156872,7.58714347,82.069,82.025,10.971]
[1773012157865,7.58714347,82.049,82.0,3.80886104]
[1773012158069,7.58714347,82.049,81.992,2.49664398]
[1773012158267,7.58714347,82.039,81.991,10.976]
[1773012159974,7.58714347,82.029,81.982,10.977]
[1773012160278,7.58714347,82.039,81.99,3.80490854]
[1773012161079,7.58714347,82.049,82.001,2.50137124]
[1773012161376,7.58714347,82.049,81.99,3.80490854]
[1773012161677,11.39205201,82.04,81.99,3.80490854]
[1773012161880,7.58714347,82.039,81.99,3.80490854]
[1773012162777,7.58714347,82.039,81.993,10.975]
[1773012164874,7.58714347,82.039,82.0,10.974]
[1773012166077,10.968,82.048,82.0,10.974]
[1773012166278,9.64963778,82.053,82.005,2.58519344]
[1773012166477,7.58714347,82.054,82.005,2.58519344]
[1773012166874,10.19031098,82.07,81.97,10.19031098]
[1773012166875,7.58714347,82.05,81.989,2.58842542]
[1773012167075,7.58714347,82.048,81.989,2.58842542]
[1773012167879,10.19031098,82.07,81.995,10.975]
[1773012167880,7.58714347,82.046,81.995,10.975]
[1773012168182,7.58714347,82.046,81.996,2.59699571]
[1773012169778,7.58714347,82.046,82.007,10.974]
[1773012170176,7.58714347,82.046,81.996,2.59699571]
[1773012170381,7.58714347,82.046,82.013,10.973]
[1773012171579,10.966,82.061,82.019,10.972]
[1773012171580,9.65833999,82.06,82.019,10.972]
[1773012171784,7.58714347,82.061,82.019,10.972]
[1773012171980,15.14791539,82.092,81.99,10.19031098]
[1773012171981,7.58714347,82.076,82.023,2.58355829]
[1773012172181,7.58714347,82.085,82.023,2.58355829]
[1773012173381,7.58714347,82.085,82.036,10.97]
[1773012175286,7.58714347,82.085,82.043,10.969]
[1773012175481,7.58714347,82.085,82.044,2.55047092]
[1773012176788,7.58714347,82.085,82.046,10.968]
[1773012180494,7.58714347,82.099,82.044,2.55047092]
[1773012181193,7.58714347,82.113,82.061,2.61289919]
[1773012181794,18.54514347,82.127,82.075,13.57122794]
[1773012182098,7.58714347,82.126,82.076,2.60722794]
[1773012182300,7.58714347,82.126,82.062,2.60722794]
[1773012182495,7.58714347,82.115,82.063,10.966]
[1773012182695,7.58714347,82.115,82.064,2.60990238]
[1773012183891,7.62530067,82.129,82.079,2.5807892]
[1773012184095,7.62530067,82.159,82.091,2.5807892]
[1773012184601,7.62530067,82.157,82.101,10.961]
[1773012185495,7.62530067,82.157,82.101,13.54446025]
[1773012185699,7.62530067,82.157,82.09,10.19031098]
[1773012185700,7.62530067,82.139,82.09,14.75630742]
[1773012185900,7.62530067,82.139,82.09,10.962]
[1773012186695,12.06400058,82.13,82.09,10.962]
[1773012186896,3.79430742,82.12,82.08,10.964]
[1773012187098,3.79430742,82.11,82.06,6.52858399]
[1773012187298,8.26969316,82.119,82.061,2.73427657]
[1773012187707,3.79430742,82.11,82.061,2.73427657]
[1773012187906,3.79430742,82.1,82.061,2.73427657]
[1773012188109,3.79430742,82.11,82.061,2.73427657]
[1773012188999,3.79430742,82.11,82.069,10.965]
[1773012190008,8.26969316,82.117,82.069,10.965]
[1773012190204,8.26969316,82.117,82.061,2.73427657]
[1773012190205,8.26969316,82.117,82.077,10.964]
[1773012190616,8.26969316,82.117,82.061,2.73427657]
[1773012191205,8.26969316,82.117,82.075,13.73592756]
[1773012191404,8.26969316,82.119,82.07,3.79430742]
[1773012192707,9.5989743,82.171,82.081,2.6208063]
[1773012192908,8.26969316,82.179,82.13,3.79430742]
[1773012193110,8.26969316,82.179,82.121,2.62079621]
[1773012193111,8.26969316,82.169,82.121,2.62079621]
[1773012193312,8.26969316,82.159,82.106,2.62079621]
[1773012193612,8.26969316,82.159,82.11,3.79430742]
[1773012193811,12.06400058,82.17,82.125,10.958]
[1773012194010,8.26969316,82.185,82.131,2.67397135]
[1773012194206,3.79430742,82.16,82.111,2.67397135]
[1773012195012,8.26969316,82.169,82.111,2.67397135]
[1773012195415,8.26969316,82.168,82.111,2.67397135]
[1773012196317,8.26969316,82.195,82.131,2.86627127]
[1773012197016,8.26969316,82.191,82.128,10.957]
[1773012197516,8.26969316,82.191,82.136,10.956]
[1773012197717,8.26969316,82.191,82.121,2.86730189]
[1773012197718,8.26969316,82.191,82.137,2.86837631]
[1773012197912,22.55338193,82.264,82.09,10.16011343]
[1773012197913,8.26969316,82.219,82.141,2.83541541]
[1773012198219,8.26969316,82.219,82.161,2.83541541]
[1773012198422,8.26969316,82.249,82.161,2.83541541]
[1773012198911,8.26969316,82.24,82.183,10.95]
[1773012199110,8.26969316,82.24,82.184,2.83643796]
[1773012199914,8.26969316,82.24,82.187,10.95]
[1773012200118,8.26969316,82.259,82.184,2.83643796]
[1773012200816,8.26969316,82.249,82.167,2.74830153]
[1773012201318,8.26969316,82.229,82.141,2.74830153]
[1773012201613,8.26969316,82.222,82.157,2.74830153]
[1773012202216,8.26969316,82.22,82.164,10.953]
[1773012204422,8.26969316,82.219,82.14,2.80652072]
[1773012204622,8.26969316,82.198,82.14,2.80652072]
[1773012204916,8.26969316,82.198,82.124,2.80752585]
[1773012205221,8.26969316,82.219,82.141,2.80752741]
[1773012205416,8.26969316,82.216,82.141,2.80752741]
[1773012206817,8.26969316,82.216,82.162,10.953]
[1773012207214,10.16011343,82.25,82.157,2.79567889]
[1773012207420,8.26969316,82.232,82.157,2.79567889]
[1773012208723,8.26969316,82.229,82.141,2.78955886]
[1773012209919,8.26969316,82.216,82.161,10.953]
[1773012210118,8.26969316,82.216,82.141,2.78955886]
[1773012210723,8.26969316,82.214,82.16,10.953]
[1773012211218,8.26969316,82.209,82.141,2.78955886]
[1773012212122,8.26969316,82.203,82.123,2.83004002]
[1773012212324,8.26969316,82.189,82.106,2.83004002]
[1773012212721,8.26969316,82.165,82.112,10.959]
[1773012213520,8.0010497,82.163,82.112,10.959]
[1773012214925,10.953,82.162,82.112,10.959]
[1773012215116,8.0010497,82.163,82.08,10.16011343]
[1773012215117,8.0010497,82.161,82.1,10.961]
[1773012215317,8.0010497,82.161,82.105,2.81696161]
[1773012215523,8.0010497,82.161,82.112,2.81696161]
[1773012215824,8.0010497,82.161,82.113,10.959]
[1773012216925,15.14791539,82.235,82.094,2.81787494]
[1773012216926,8.0010497,82.195,82.112,2.86938268]
[1773012217115,8.0010497,82.195,82.121,2.86938268]
[1773012217920,8.0010497,82.184,82.127,10.958]
[1773012218120,8.0010497,82.184,82.121,2.86938268]
[1773012218723,8.0010497,82.219,82.141,2.85991833]
[1773012219325,8.0010497,82.207,82.141,2.85991833]
[1773012220215,8.0010497,82.205,82.159,10.953]
[1773012221328,8.0010497,82.205,82.151,10.954]
[1773012221521,8.0010497,82.205,82.141,2.85991833]
[1773012222324,10.948,82.197,82.15,10.954]
[1773012222724,8.0010497,82.196,82.15,10.954]
[1773012223127,8.0010497,82.196,82.142,10.956]
[1773012223524,8.0010497,82.196,82.141,2.85991833]
[1773012224328,8.0010497,82.196,82.156,10.954]
[1773012225621,8.0010497,82.196,82.141,2.85991833]
[1773012225622,8.0010497,82.227,82.164,10.953]
[1773012226033,8.0010497,82.227,82.165,2.8928066]
[1773012226328,8.0010497,82.252,82.171,2.8928066]
[1773012226831,8.0010497,82.247,82.171,2.8928066]
[1773012227538,8.0010497,82.247,82.194,10.949]
[1773012228120,8.0010497,82.244,82.186,2.8943879]
[1773012228827,224.20023934,82.298,82.191,2.91357381]
[1773012228828,8.0010497,82.293,82.191,2.91357381]
[1773012229026,8.0010497,82.293,82.211,2.91357873]
[1773012229227,10.937,82.281,82.222,2.91357873]
[1773012229422,8.0010497,82.293,82.222,2.91357873]
[1773012229927,10.936,82.292,82.236,10.943]
[1773012230126,18.9370497,82.292,82.236,10.943]
[1773012230326,8.0010497,82.291,82.222,2.91357873]
[1773012231030,202.33023934,82.298,82.225,2.93017524]
[1773012231227,8.0010497,82.301,82.231,2.93017524]
[1773012231829,8.0010497,82.301,82.232,10.944]
[1773012232229,8.0010497,82.301,82.233,2.78496367]
[1773012232430,8.0010497,82.292,82.233,2.78496367]
[1773012233229,10.14990507,82.31,82.233,2.78496367]
[1773012233230,8.0010497,82.289,82.233,2.78496367]
[1773012233732,8.0010497,82.285,82.199,2.78630128]
[1773012234330,8.0010497,82.269,82.199,2.78630128]
[1773012234532,8.0010497,82.259,82.179,2.78794312]
[1773012234737,8.0010497,82.249,82.179,2.78794312]
[1773012235237,8.0010497,82.269,82.181,2.78866348]
[1773012235838,10.941,82.253,82.201,10.948]
[1773012236033,8.0010497,82.269,82.201,10.948]
[1773012236534,8.0010497,82.253,82.192,10.949]
[1773012236736,8.0010497,82.253,82.181,2.78866348]
[1773012237732,8.0010497,82.253,82.198,2.74309412]
[1773012237939,8.0010497,82.27,82.198,2.74309412]
[1773012238232,8.0010497,82.27,82.17,10.14990507]
[1773012238439,8.0010497,82.249,82.171,2.7603717]
[1773012239333,8.0010497,82.249,82.193,10.949]
[1773012240837,10.941,82.248,82.201,10.948]
[1773012241034,8.0010497,82.247,82.187,2.90778698]
[1773012241435,8.0010497,82.243,82.187,2.90778698]
[1773012242032,10.942,82.248,82.187,2.90778698]
[1773012242241,8.0010497,82.259,82.187,2.90778698]
[1773012242437,8.0010497,82.279,82.2,10.14990507]
[1773012242635,8.0010497,82.279,82.201,2.90893161]
[1773012242835,10.939,82.269,82.201,2.90893161]
[1773012243238,7.64347142,82.268,82.201,2.90893161]
[1773012244435,7.64347142,82.262,82.213,10.946]
[1773012244635,7.64347142,82.262,82.14,10.14990507]
[1773012244636,7.64347142,82.259,82.161,2.88923698]
[1773012244938,7.64347142,82.259,82.181,2.88923999]
[1773012245739,10.941,82.252,82.2,10.948]
[1773012246137,7.64347142,82.251,82.181,2.88923999]
[1773012246944,8.29772376,82.246,82.199,10.948]
[1773012247344,8.29772376,82.246,82.181,2.88923999]
[1773012248933,8.29772376,82.279,82.181,2.88923999]
[1773012250043,8.29772376,82.275,82.205,2.89566528]
[1773012250941,19.23572376,82.275,82.23,10.944]
[1773012251141,8.29772376,82.269,82.205,2.89566528]
[1773012251447,8.29772376,82.269,82.188,2.89615346]
[1773012252745,10.941,82.254,82.204,10.947]
[1773012252947,8.29772376,82.253,82.204,10.947]
[1773012253737,10.942,82.245,82.196,10.948]
[1773012253947,8.29772376,82.244,82.171,3.02049111]
[1773012254349,10.943,82.234,82.178,10.951]
[1773012254653,8.29772376,82.233,82.171,3.02049111]
[1773012255148,8.29772376,82.233,82.185,10.95]
[1773012258557,8.29772376,82.23,82.185,10.95]
[1773012259355,8.29772376,82.23,82.192,10.949]
[1773012259755,8.29772376,82.23,82.171,3.02049111]
[1773012260156,8.29772376,82.226,82.183,10.95]
[1773012261159,8.29772376,82.223,82.175,10.951]
[1773012261349,8.29772376,82.223,82.171,3.02049111]
[1773012262562,10.14990507,82.25,82.171,3.02049111]
[1773012262563,8.29772376,82.222,82.171,3.02049111]
[1773012262761,8.29772376,82.222,82.141,3.126463]
[1773012263257,8.29772376,82.22,82.17,10.952]
[1773012263463,8.29772376,82.249,82.161,3.1264735]
[1773012263659,8.29772376,82.209,82.12,3.12704905]
[1773012263853,10.14990507,82.21,82.139,3.1269183]
[1773012264052,8.29772376,82.218,82.141,3.1269183]
[1773012264256,10.946,82.217,82.164,10.953]
[1773012264662,8.29772376,82.233,82.161,3.1269183]
[1773012264858,9.5408759,82.242,82.161,3.1269183]
[1773012264859,8.29772376,82.23,82.181,10.95]
[1773012265764,10.944,82.228,82.181,10.95]
[1773012265960,19.24172376,82.228,82.181,10.95]
[1773012266160,8.29772376,82.227,82.181,10.95]
[1773012268657,8.29772376,82.227,82.161,3.1269183]
[1773012269158,8.29772376,82.227,82.18,2.94297059]
[1773012269364,8.29772376,82.227,82.165,2.94297059]
[1773012270164,8.29772376,82.225,82.18,10.951]
[1773012271262,8.29772376,82.222,82.18,10.951]
[1773012271664,8.29772376,82.222,82.172,10.952]
[1773012272368,8.29772376,82.22,82.178,10.951]
[1773012273864,10.14990507,82.23,82.166,10.952]
[1773012273865,8.09802966,82.218,82.166,10.952]
[1773012274764,8.09802966,82.213,82.173,10.951]
[1773012275159,8.09802966,82.213,82.154,3.37713027]
[1773012275561,11.88706163,82.21,82.154,3.37713027]
[1773012276766,11.88706163,82.21,82.165,10.952]
[1773012277376,8.09802966,82.209,82.165,10.952]
[1773012277872,8.09802966,82.189,82.14,3.78903197]
[1773012278077,11.88706163,82.21,82.151,3.40223882]
[1773012278269,11.88706163,82.21,82.16,7.19127079]
[1773012278469,11.88706163,82.21,82.165,10.953]
[1773012278670,8.09802966,82.209,82.165,10.953]
[1773012278878,8.09802966,82.189,82.131,3.40277939]
[1773012279273,10.95,82.188,82.14,10.956]
[1773012279474,8.09802966,82.187,82.14,10.956]
[1773012279676,8.09802966,82.187,82.141,3.40322357]
[1773012279971,3.79094945,82.19,82.154,10.954]
[1773012280177,3.79094945,82.2,82.154,3.38372956]
[1773012281982,8.09802966,82.201,82.163,10.953]
[1773012283778,3.79094945,82.21,82.171,10.952]
[1773012284879,3.79094945,82.21,82.16,3.79094945]
[1773012284880,3.79094945,82.21,82.163,10.953]
[1773012285087,8.09802966,82.209,82.163,10.953]
[1773012285481,8.09802966,82.209,82.154,3.38372956]
[1773012286779,8.09802966,82.209,82.17,10.952]
[1773012289779,8.09802966,82.209,82.154,3.38372956]
[1773012290786,8.09802966,82.209,82.169,10.952]
[1773012294082,3.79094945,82.22,82.17,3.79094945]
[1773012294387,3.79094945,82.22,82.171,2.66356954]
[1773012294584,11.88897911,82.22,82.171,2.66356954]
[1773012294787,8.09802966,82.219,82.18,10.95]
[1773012300390,8.09802966,82.209,82.173,10.951]
[1773012300589,8.09802966,82.209,82.154,2.65532463]
[1773012300794,3.79094945,82.22,82.171,2.65567422]
[1773012301693,8.09802966,82.199,82.141,2.65596269]
[1773012301893,8.09802966,82.199,82.151,2.65596269]
[1773012302896,8.09802966,82.199,82.171,10.952]
[1773012303092,3.79094945,82.23,82.172,2.65273734]
[1773012303292,9.6623363,82.229,82.181,2.65273734]
[1773012303493,3.79094945,82.23,82.181,2.65273734]
[1773012303795,9.66233692,82.229,82.181,2.65273734]
[1773012303999,3.79094945,82.23,82.181,2.65273734]
[1773012304193,9.66232511,82.229,82.181,2.65273734]
[1773012304494,7.66108879,82.219,82.179,10.951]
[1773012304792,7.66108879,82.219,82.171,2.65214175]
[1773012304992,7.66108879,82.219,82.185,10.95]
[1773012306598,3.79094945,82.23,82.192,10.949]
[1773012306793,9.66504669,82.229,82.192,10.949]
[1773012306989,3.79094945,82.23,82.192,10.949]
[1773012306990,17.70628656,82.228,82.192,10.949]
[1773012307195,8.04123987,82.227,82.185,10.95]
[1773012307394,3.79094945,82.22,82.185,10.95]
[1773012310397,8.04123987,82.219,82.185,10.95]
[1773012311099,10.944,82.23,82.127,29.76955001]
[1773012311100,3.79094945,82.23,82.183,2.68006546]
[1773012311298,3.79094945,82.27,82.21,3.79094945]
[1773012311503,3.79094945,82.27,82.221,2.68006546]
[1773012311696,8.04123987,82.289,82.242,10.942]
[1773012312405,8.04123987,82.289,82.25,10.941]
[1773012312593,15.06717053,82.324,82.198,21.897]
[1773012312594,3.79094945,82.31,82.26,3.79094945]
[1773012312792,3.79094945,82.31,82.261,2.6895569]
[1773012313095,3.79094945,82.29,82.249,10.941]
[1773012313302,8.04123987,82.299,82.247,2.68955437]
[1773012314103,8.04123987,82.279,82.22,6.40496687]
[1773012314299,3.79094945,82.27,82.221,2.61401742]
[1773012314694,8.04123987,82.279,82.221,2.61401742]
[1773012314894,8.04123987,82.249,82.16,2.61438483]
[1773012315097,3.79094945,82.24,82.195,2.61438483]
[1773012315303,3.79094945,82.24,82.198,10.948]
[1773012315500,8.04123987,82.249,82.198,10.948]
[1773012316504,8.04123987,82.249,82.198,13.42351182]
[1773012317505,8.04123987,82.265,82.204,2.47571948]
[1773012317905,8.04123987,82.239,82.182,2.47604298]
[1773012318204,8.04123987,82.239,82.183,2.47850865]
[1773012319400,8.04123987,82.239,82.192,2.47882128]
[1773012319701,18.98223987,82.251,82.192,2.47882128]
[1773012319893,8.04123987,82.25,82.192,2.47882128]
[1773012320094,8.04123987,82.25,82.198,10.948]
[1773012323707,8.04123987,82.25,82.203,2.38360324]
[1773012323903,8.04123987,82.269,82.203,2.38360324]
[1773012324605,8.04123987,82.269,82.22,13.34206968]
[1773012324806,8.04123987,82.269,82.221,2.39730518]
[1773012325410,8.04123987,82.269,82.227,10.944]
[1773012327813,8.04123987,82.269,82.19,10.14035218]
[1773012327814,8.04123987,82.269,82.206,2.42621262]
[1773012328017,8.04123987,82.269,82.167,2.40127718]
[1773012328314,10.14035218,82.27,82.152,297.40185011]
[1773012328315,8.04123987,82.243,82.19,10.949]
[1773012330706,8.04123987,82.243,82.198,10.948]
[1773012330910,10.941,82.254,82.199,2.57041253]
[1773012331106,18.98223987,82.254,82.199,2.57041253]
[1773012331819,8.04123987,82.253,82.204,10.947]
[1773012333216,8.04123987,82.253,82.209,2.5491759]
[1773012333415,7.59707605,82.288,82.209,2.5491759]
[1773012333613,7.59707605,82.288,82.211,2.5491759]
[1773012334916,7.59707605,82.287,82.234,10.943]
[1773012335818,7.59707605,82.278,82.226,10.944]
[1773012336017,7.59707605,82.278,82.212,2.56590828]
[1773012336417,7.59707605,82.277,82.225,10.944]
[1773012337123,7.59707605,82.274,82.225,10.944]
[1773012337322,7.59707605,82.274,82.212,2.56590828]
[1773012338026,7.59707605,82.266,82.213,10.946]
[1773012339030,7.59707605,82.249,82.164,2.57632198]
[1773012339525,7.59707605,82.239,82.164,2.57632198]
[1773012339720,7.59707605,82.254,82.171,2.57662005]
[1773012340116,7.59707605,82.254,82.196,2.60970816]
[1773012340515,7.59707605,82.251,82.171,2.60970816]
[1773012340724,7.59707605,82.249,82.171,2.60970816]
[1773012341725,7.59707605,82.239,82.171,2.60970816]
[1773012341924,7.59707605,82.231,82.175,10.951]
[1773012342424,7.59707605,82.231,82.184,10.95]
[1773012342826,7.59707605,82.231,82.184,2.7472764]
[1773012343028,7.59707605,82.246,82.184,2.7472764]
[1773012343324,7.59707605,82.242,82.191,10.949]
[1773012343531,7.59707605,82.242,82.184,2.7472764]
[1773012345331,7.59707605,82.242,82.196,10.948]
[1773012346030,7.59707605,82.24,82.188,10.949]
[1773012346226,7.59707605,82.239,82.168,2.73940191]
[1773012347223,7.59707605,82.237,82.187,10.95]
[1773012347823,7.59707605,82.237,82.183,2.72218163]
[1773012348028,7.59707605,82.237,82.197,10.948]
[1773012350628,7.59707605,82.237,82.16,10.14753011]
[1773012350825,7.59707605,82.237,82.168,2.72413048]
[1773012351333,7.59707605,82.237,82.19,10.949]
[1773012353027,9.52265195,82.259,82.21,2.7315736]
[1773012353233,7.59707605,82.258,82.195,2.7315736]
[1773012353827,9.52265195,82.269,82.2,10.948]
[1773012353828,7.59707605,82.249,82.2,10.948]
[1773012356034,7.59707605,82.247,82.2,10.948]
[1773012357942,7.59707605,82.245,82.192,10.949]
[1773012358830,7.59707605,82.24,82.198,10.948]
[1773012359535,7.59707605,82.239,82.198,10.948]
[1773012359940,3.78646901,82.22,82.181,2.73188117]
[1773012360937,7.59707605,82.223,82.181,2.73188117]
[1773012361746,7.59707605,82.237,82.191,2.29008135]
[1773012362834,7.59707605,82.237,82.196,10.948]